{"text_format":"1","workbook":"xlsx","n_sheets":3,"sheets":["Главная","2","Статья_бюджета"],"not_rendered":{"charts":0,"images":1,"macros":1,"external_links":1,"defined_names":7,"comments":0,"pivot_tables":0},"unopened":[],"bounds":{"document_bytes":16777216,"sheet_cells":100000,"rows_first":2000,"rows_last":500,"rows_between":2000,"halvings":0,"cell_chars":16384,"cell_head_chars":4096},"cells_cut":0,"cells_raw":0,"read":"whole","date_system":"1900"}

{"sheet":"Главная","index":0,"n_rows":25,"n_cols":10,"rows_kept":25,"cut":false,"hidden":false,"merged":[[0,1,0,7],[2,0,2,2]]}
[null,"Бюджет движения денежных средств - детализация"]
[]
["Исходные данные:"]
[null,"Период:","с:","2014-04-01"]
[null,null,"по:","2014-04-05"]
[]
[]
[]
[]
[]
[]
[]
[]
[]
[]
[]
["Дата","№ бухг#","Форма расчета","Денежный фонд","Конечный контрагент","Промежуточный контрагент","Назначение","Сумма","Строительный проект","Вид операции"]
["2014-04-01",145,"Б/Н","Касса","Алещик В.Т.","Блюденова Л.В.","назначение",1000,"2Га","Первый платеж"]
["2014-04-02",34,"Б/Н","Касса","Блюденова Л.В.","Босая Д.Ю.","компьютер",1200,"2Га","Очередной платеж"]
["2014-04-03",35,"Бартер","Касса","Блюденова Л.В.","Босая Д.Ю.","ибп",1212,"Гаражная","Предоплата"]
["2014-04-05",37,"Наличные","Депозит","Усачев Е.В.","Босая Д.Ю.","ремонт",2323,"Заозерная","Заработная плата"]
["2014-04-06",38,"Наличные","Депозит","Фоканова Ю.А.","Юдин А.Ю.","канализация",1000,"КУО","Заработная плата"]
["2014-04-07",39,"Наличные","Депозит","Ворошилов О.В.","Блюденова Л.В.","течь",122000,"Заозерная","Заработная плата"]
["2014-04-08",40,"Наличные","Депозит","Ворошилов О.В.","Босая Д.Ю.",null,200000,"Гаражная","Заработная плата"]
["2014-04-09",41,"Наличные","Депозит","Блюденова Л.В.","Босая Д.Ю.",null,88,"Гаражная","Заработная плата"]

{"sheet":"2","index":1,"n_rows":10,"n_cols":10,"rows_kept":10,"cut":false,"hidden":false,"merged":[[0,0,0,1],[5,2,5,3],[5,8,5,9],[6,1,6,3],[6,5,6,6],[1,0,1,1],[4,1,4,2],[3,0,3,2]]}
["Расходы"]
[]
[null,null,{"$f":"VALUE(MID(CELL(\"имяфайла\",A1),FIND(\"]\",CELL(\"имяфайла\",A1))+1,65535))","v":2},{"$f":"VLOOKUP(C3,Статья_бюджета!A$2:D$42,3,0)","v":"Расход"},{"$f":"VLOOKUP(C3,Статья_бюджета!A$2:D$42,2,0)","v":"Стройка"},{"$f":"VLOOKUP(C3,Статья_бюджета!A$2:D$42,4,0)","v":"Акты - кв. м."}]
[{"$f":"C3&\" - \"&E3&\": \"&F3","v":"2 - Стройка: Акты - кв. м."}]
[]
[null,"Период",{"$f":"TEXT(Главная!$D$4,\"ДД.ММ.ГГ\")&\" - \"&TEXT(Главная!$D$5,\"ДД.ММ.ГГ\")","v":"01.04.14 - 05.04.14"},null,null,null,null,"Итого:",{"$f":"SUM(J10:J1048576)","v":1200}]
[]
["Дата","Денежный фонд","№ бухг#","Вид операции","Форма расчета","Конечный контрагент","Промежуточный контрагент","Назначение","Строительный проект","Сумма"]
["2014-04-01","Касса",145,"Первый платеж","Б/Н","Алещик В.Т.","Блюденова Л.В.","назначение","2Га",1000]
["2014-04-02","Касса",34,"Очередной платеж","Б/Н","Блюденова Л.В.","Босая Д.Ю.","компьютер","2Га",1200]

{"sheet":"Статья_бюджета","index":2,"n_rows":100,"n_cols":4,"rows_kept":100,"cut":false,"hidden":false,"merged":[]}
["Порядковый номер","ЦФО","Вид движения ДС","Статья"]
[{"$f":"[1]!Статья_бюджета_Порядковый_номер","v":1},{"$f":"[1]!Статья_бюджета_ЦФО","v":"Стройка"},{"$f":"[1]!Статья_бюджета_Вид_движения_ДС","v":"Расход"},{"$f":"[1]!Статья_бюджета_Статья","v":"Зарплата"}]
[{"$f":"[1]!Статья_бюджета_Порядковый_номер","v":2},{"$f":"[1]!Статья_бюджета_ЦФО","v":"Стройка"},{"$f":"[1]!Статья_бюджета_Вид_движения_ДС","v":"Расход"},{"$f":"[1]!Статья_бюджета_Статья","v":"Акты - кв. м."}]
[{"$f":"[1]!Статья_бюджета_Порядковый_номер","v":3},{"$f":"[1]!Статья_бюджета_ЦФО","v":"Стройка"},{"$f":"[1]!Статья_бюджета_Вид_движения_ДС","v":"Расход"},{"$f":"[1]!Статья_бюджета_Статья","v":"Акты - сети"}]
[{"$f":"[1]!Статья_бюджета_Порядковый_номер","v":4},{"$f":"[1]!Статья_бюджета_ЦФО","v":"Стройка"},{"$f":"[1]!Статья_бюджета_Вид_движения_ДС","v":"Расход"},{"$f":"[1]!Статья_бюджета_Статья","v":"Материалы - кв. м."}]
[{"$f":"[1]!Статья_бюджета_Порядковый_номер","v":5},{"$f":"[1]!Статья_бюджета_ЦФО","v":"Стройка"},{"$f":"[1]!Статья_бюджета_Вид_движения_ДС","v":"Расход"},{"$f":"[1]!Статья_бюджета_Статья","v":"Материалы - сети"}]
[{"$f":"[1]!Статья_бюджета_Порядковый_номер","v":6},{"$f":"[1]!Статья_бюджета_ЦФО","v":"Стройка"},{"$f":"[1]!Статья_бюджета_Вид_движения_ДС","v":"Расход"},{"$f":"[1]!Статья_бюджета_Статья","v":"Накладные"}]
[{"$f":"[1]!Статья_бюджета_Порядковый_номер","v":7},{"$f":"[1]!Статья_бюджета_ЦФО","v":"Стройка"},{"$f":"[1]!Статья_бюджета_Вид_движения_ДС","v":"Расход"},{"$f":"[1]!Статья_бюджета_Статья","v":"Техника"}]
[{"$f":"[1]!Статья_бюджета_Порядковый_номер","v":8},{"$f":"[1]!Статья_бюджета_ЦФО","v":"Головная компания"},{"$f":"[1]!Статья_бюджета_Вид_движения_ДС","v":"Расход"},{"$f":"[1]!Статья_бюджета_Статья","v":"Инвестиции в ЗУ"}]
[{"$f":"[1]!Статья_бюджета_Порядковый_номер","v":9},{"$f":"[1]!Статья_бюджета_ЦФО","v":"Головная компания"},{"$f":"[1]!Статья_бюджета_Вид_движения_ДС","v":"Расход"},{"$f":"[1]!Статья_бюджета_Статья","v":"Зарплата"}]
[{"$f":"[1]!Статья_бюджета_Порядковый_номер","v":10},{"$f":"[1]!Статья_бюджета_ЦФО","v":"Головная компания"},{"$f":"[1]!Статья_бюджета_Вид_движения_ДС","v":"Расход"},{"$f":"[1]!Статья_бюджета_Статья","v":"Зарплата - доплаты"}]
[{"$f":"[1]!Статья_бюджета_Порядковый_номер","v":11},{"$f":"[1]!Статья_бюджета_ЦФО","v":"Головная компания"},{"$f":"[1]!Статья_бюджета_Вид_движения_ДС","v":"Расход"},{"$f":"[1]!Статья_бюджета_Статья","v":"Накладные"}]
[{"$f":"[1]!Статья_бюджета_Порядковый_номер","v":12},{"$f":"[1]!Статья_бюджета_ЦФО","v":"Головная компания"},{"$f":"[1]!Статья_бюджета_Вид_движения_ДС","v":"Расход"},{"$f":"[1]!Статья_бюджета_Статья","v":"Аренда офисов"}]
[{"$f":"[1]!Статья_бюджета_Порядковый_номер","v":13},{"$f":"[1]!Статья_бюджета_ЦФО","v":"Головная компания"},{"$f":"[1]!Статья_бюджета_Вид_движения_ДС","v":"Расход"},{"$f":"[1]!Статья_бюджета_Статья","v":"Оборудование"}]
[{"$f":"[1]!Статья_бюджета_Порядковый_номер","v":14},{"$f":"[1]!Статья_бюджета_ЦФО","v":"Головная компания"},{"$f":"[1]!Статья_бюджета_Вид_движения_ДС","v":"Расход"},{"$f":"[1]!Статья_бюджета_Статья","v":"Юр. расходы"}]
[{"$f":"[1]!Статья_бюджета_Порядковый_номер","v":15},{"$f":"[1]!Статья_бюджета_ЦФО","v":"Головная компания"},{"$f":"[1]!Статья_бюджета_Вид_движения_ДС","v":"Расход"},{"$f":"[1]!Статья_бюджета_Статья","v":"Соглас., проект."}]
[{"$f":"[1]!Статья_бюджета_Порядковый_номер","v":16},{"$f":"[1]!Статья_бюджета_ЦФО","v":"Головная компания"},{"$f":"[1]!Статья_бюджета_Вид_движения_ДС","v":"Расход"},{"$f":"[1]!Статья_бюджета_Статья","v":"Реклама"}]
[{"$f":"[1]!Статья_бюджета_Порядковый_номер","v":17},{"$f":"[1]!Статья_бюджета_ЦФО","v":"Головная компания"},{"$f":"[1]!Статья_бюджета_Вид_движения_ДС","v":"Расход"},{"$f":"[1]!Статья_бюджета_Статья","v":"Долги - возврат"}]
[{"$f":"[1]!Статья_бюджета_Порядковый_номер","v":18},{"$f":"[1]!Статья_бюджета_ЦФО","v":"Головная компания"},{"$f":"[1]!Статья_бюджета_Вид_движения_ДС","v":"Расход"},{"$f":"[1]!Статья_бюджета_Статья","v":"Аренда земли"}]
[{"$f":"[1]!Статья_бюджета_Порядковый_номер","v":19},{"$f":"[1]!Статья_бюджета_ЦФО","v":"Головная компания"},{"$f":"[1]!Статья_бюджета_Вид_движения_ДС","v":"Расход"},{"$f":"[1]!Статья_бюджета_Статья","v":"Спонсорство"}]
[{"$f":"[1]!Статья_бюджета_Порядковый_номер","v":20},{"$f":"[1]!Статья_бюджета_ЦФО","v":"Головная компания"},{"$f":"[1]!Статья_бюджета_Вид_движения_ДС","v":"Расход"},{"$f":"[1]!Статья_бюджета_Статья","v":"Налоги, отчисления"}]
[{"$f":"[1]!Статья_бюджета_Порядковый_номер","v":21},{"$f":"[1]!Статья_бюджета_ЦФО","v":"Головная компания"},{"$f":"[1]!Статья_бюджета_Вид_движения_ДС","v":"Расход"},{"$f":"[1]!Статья_бюджета_Статья","v":"Выдано в долг"}]
[{"$f":"[1]!Статья_бюджета_Порядковый_номер","v":22},{"$f":"[1]!Статья_бюджета_ЦФО","v":"Головная компания"},{"$f":"[1]!Статья_бюджета_Вид_движения_ДС","v":"Расход"},{"$f":"[1]!Статья_бюджета_Статья","v":"Добро"}]
[{"$f":"[1]!Статья_бюджета_Порядковый_номер","v":23},{"$f":"[1]!Статья_бюджета_ЦФО","v":"Головная компания"},{"$f":"[1]!Статья_бюджета_Вид_движения_ДС","v":"Расход"},{"$f":"[1]!Статья_бюджета_Статья","v":"Прочее"}]
[{"$f":"[1]!Статья_бюджета_Порядковый_номер","v":24},{"$f":"[1]!Статья_бюджета_ЦФО","v":"УК"},{"$f":"[1]!Статья_бюджета_Вид_движения_ДС","v":"Расход"},{"$f":"[1]!Статья_бюджета_Статья","v":"Зарплата"}]
[{"$f":"[1]!Статья_бюджета_Порядковый_номер","v":25},{"$f":"[1]!Статья_бюджета_ЦФО","v":"УК"},{"$f":"[1]!Статья_бюджета_Вид_движения_ДС","v":"Расход"},{"$f":"[1]!Статья_бюджета_Статья","v":"Обеспечение"}]
[{"$f":"[1]!Статья_бюджета_Порядковый_номер","v":26},{"$f":"[1]!Статья_бюджета_ЦФО","v":"УК"},{"$f":"[1]!Статья_бюджета_Вид_движения_ДС","v":"Расход"},{"$f":"[1]!Статья_бюджета_Статья","v":"Коммунальные платежи"}]
[{"$f":"[1]!Статья_бюджета_Порядковый_номер","v":27},{"$f":"[1]!Статья_бюджета_ЦФО","v":"УК"},{"$f":"[1]!Статья_бюджета_Вид_движения_ДС","v":"Расход"},{"$f":"[1]!Статья_бюджета_Статья","v":"Аренда земли"}]
[{"$f":"[1]!Статья_бюджета_Порядковый_номер","v":28},{"$f":"[1]!Статья_бюджета_ЦФО","v":"Отдел продаж СП"},{"$f":"[1]!Статья_бюджета_Вид_движения_ДС","v":"Доход"},{"$f":"[1]!Статья_бюджета_Статья","v":"Продажа - кв."}]
[{"$f":"[1]!Статья_бюджета_Порядковый_номер","v":29},{"$f":"[1]!Статья_бюджета_ЦФО","v":"Отдел продаж СП"},{"$f":"[1]!Статья_бюджета_Вид_движения_ДС","v":"Доход"},{"$f":"[1]!Статья_бюджета_Статья","v":"Доплата - кв."}]
[{"$f":"[1]!Статья_бюджета_Порядковый_номер","v":30},{"$f":"[1]!Статья_бюджета_ЦФО","v":"Отдел продаж СД"},{"$f":"[1]!Статья_бюджета_Вид_движения_ДС","v":"Доход"},{"$f":"[1]!Статья_бюджета_Статья","v":"Продажа - кв."}]
[{"$f":"[1]!Статья_бюджета_Порядковый_номер","v":31},{"$f":"[1]!Статья_бюджета_ЦФО","v":"Отдел продаж СД"},{"$f":"[1]!Статья_бюджета_Вид_движения_ДС","v":"Доход"},{"$f":"[1]!Статья_бюджета_Статья","v":"Доплата - кв."}]
[{"$f":"[1]!Статья_бюджета_Порядковый_номер","v":32},{"$f":"[1]!Статья_бюджета_ЦФО","v":"Головная компания"},{"$f":"[1]!Статья_бюджета_Вид_движения_ДС","v":"Доход"},{"$f":"[1]!Статья_бюджета_Статья","v":"Доплата - ЗУ"}]
[{"$f":"[1]!Статья_бюджета_Порядковый_номер","v":33},{"$f":"[1]!Статья_бюджета_ЦФО","v":"Головная компания"},{"$f":"[1]!Статья_бюджета_Вид_движения_ДС","v":"Доход"},{"$f":"[1]!Статья_бюджета_Статья","v":"Доплата - ИД"}]
[{"$f":"[1]!Статья_бюджета_Порядковый_номер","v":34},{"$f":"[1]!Статья_бюджета_ЦФО","v":"Головная компания"},{"$f":"[1]!Статья_бюджета_Вид_движения_ДС","v":"Доход"},{"$f":"[1]!Статья_бюджета_Статья","v":"Долги - возврат"}]
[{"$f":"[1]!Статья_бюджета_Порядковый_номер","v":35},{"$f":"[1]!Статья_бюджета_ЦФО","v":"Головная компания"},{"$f":"[1]!Статья_бюджета_Вид_движения_ДС","v":"Доход"},{"$f":"[1]!Статья_бюджета_Статья","v":"Прочее"}]
[{"$f":"[1]!Статья_бюджета_Порядковый_номер","v":36},{"$f":"[1]!Статья_бюджета_ЦФО","v":"УК"},{"$f":"[1]!Статья_бюджета_Вид_движения_ДС","v":"Доход"},{"$f":"[1]!Статья_бюджета_Статья","v":"Коммунальные платежи"}]
[{"$f":"[1]!Статья_бюджета_Порядковый_номер","v":37},{"$f":"[1]!Статья_бюджета_ЦФО","v":"УК"},{"$f":"[1]!Статья_бюджета_Вид_движения_ДС","v":"Доход"},{"$f":"[1]!Статья_бюджета_Статья","v":"Техобслуживание"}]
[{"$f":"[1]!Статья_бюджета_Порядковый_номер","v":38},{"$f":"[1]!Статья_бюджета_ЦФО","v":"Головная компания"},{"$f":"[1]!Статья_бюджета_Вид_движения_ДС","v":"Расход"},{"$f":"[1]!Статья_бюджета_Статья","v":"Б/Н счет - на"}]
[{"$f":"[1]!Статья_бюджета_Порядковый_номер","v":39},{"$f":"[1]!Статья_бюджета_ЦФО","v":"Головная компания"},{"$f":"[1]!Статья_бюджета_Вид_движения_ДС","v":"Доход"},{"$f":"[1]!Статья_бюджета_Статья","v":"Б/Н счет - с"}]
[{"$f":"[1]!Статья_бюджета_Порядковый_номер","v":40},{"$f":"[1]!Статья_бюджета_ЦФО","v":"Головная компания"},{"$f":"[1]!Статья_бюджета_Вид_движения_ДС","v":"Расход"},{"$f":"[1]!Статья_бюджета_Статья","v":"Депозит - на"}]
[{"$f":"[1]!Статья_бюджета_Порядковый_номер","v":41},{"$f":"[1]!Статья_бюджета_ЦФО","v":"Головная компания"},{"$f":"[1]!Статья_бюджета_Вид_движения_ДС","v":"Доход"},{"$f":"[1]!Статья_бюджета_Статья","v":"Депозит - с"}]
[{"$f":"[1]!Статья_бюджета_Порядковый_номер","v":0},{"$f":"[1]!Статья_бюджета_ЦФО","v":0},{"$f":"[1]!Статья_бюджета_Вид_движения_ДС","v":0},{"$f":"[1]!Статья_бюджета_Статья","v":0}]
[{"$f":"[1]!Статья_бюджета_Порядковый_номер","v":0},{"$f":"[1]!Статья_бюджета_ЦФО","v":0},{"$f":"[1]!Статья_бюджета_Вид_движения_ДС","v":0},{"$f":"[1]!Статья_бюджета_Статья","v":0}]
[{"$f":"[1]!Статья_бюджета_Порядковый_номер","v":0},{"$f":"[1]!Статья_бюджета_ЦФО","v":0},{"$f":"[1]!Статья_бюджета_Вид_движения_ДС","v":0},{"$f":"[1]!Статья_бюджета_Статья","v":0}]
[{"$f":"[1]!Статья_бюджета_Порядковый_номер","v":0},{"$f":"[1]!Статья_бюджета_ЦФО","v":0},{"$f":"[1]!Статья_бюджета_Вид_движения_ДС","v":0},{"$f":"[1]!Статья_бюджета_Статья","v":0}]
[{"$f":"[1]!Статья_бюджета_Порядковый_номер","v":0},{"$f":"[1]!Статья_бюджета_ЦФО","v":0},{"$f":"[1]!Статья_бюджета_Вид_движения_ДС","v":0},{"$f":"[1]!Статья_бюджета_Статья","v":0}]
[{"$f":"[1]!Статья_бюджета_Порядковый_номер","v":0},{"$f":"[1]!Статья_бюджета_ЦФО","v":0},{"$f":"[1]!Статья_бюджета_Вид_движения_ДС","v":0},{"$f":"[1]!Статья_бюджета_Статья","v":0}]
[{"$f":"[1]!Статья_бюджета_Порядковый_номер","v":0},{"$f":"[1]!Статья_бюджета_ЦФО","v":0},{"$f":"[1]!Статья_бюджета_Вид_движения_ДС","v":0},{"$f":"[1]!Статья_бюджета_Статья","v":0}]
[{"$f":"[1]!Статья_бюджета_Порядковый_номер","v":0},{"$f":"[1]!Статья_бюджета_ЦФО","v":0},{"$f":"[1]!Статья_бюджета_Вид_движения_ДС","v":0},{"$f":"[1]!Статья_бюджета_Статья","v":0}]
[{"$f":"[1]!Статья_бюджета_Порядковый_номер","v":0},{"$f":"[1]!Статья_бюджета_ЦФО","v":0},{"$f":"[1]!Статья_бюджета_Вид_движения_ДС","v":0},{"$f":"[1]!Статья_бюджета_Статья","v":0}]
[{"$f":"[1]!Статья_бюджета_Порядковый_номер","v":0},{"$f":"[1]!Статья_бюджета_ЦФО","v":0},{"$f":"[1]!Статья_бюджета_Вид_движения_ДС","v":0},{"$f":"[1]!Статья_бюджета_Статья","v":0}]
[{"$f":"[1]!Статья_бюджета_Порядковый_номер","v":0},{"$f":"[1]!Статья_бюджета_ЦФО","v":0},{"$f":"[1]!Статья_бюджета_Вид_движения_ДС","v":0},{"$f":"[1]!Статья_бюджета_Статья","v":0}]
[{"$f":"[1]!Статья_бюджета_Порядковый_номер","v":0},{"$f":"[1]!Статья_бюджета_ЦФО","v":0},{"$f":"[1]!Статья_бюджета_Вид_движения_ДС","v":0},{"$f":"[1]!Статья_бюджета_Статья","v":0}]
[{"$f":"[1]!Статья_бюджета_Порядковый_номер","v":0},{"$f":"[1]!Статья_бюджета_ЦФО","v":0},{"$f":"[1]!Статья_бюджета_Вид_движения_ДС","v":0},{"$f":"[1]!Статья_бюджета_Статья","v":0}]
[{"$f":"[1]!Статья_бюджета_Порядковый_номер","v":0},{"$f":"[1]!Статья_бюджета_ЦФО","v":0},{"$f":"[1]!Статья_бюджета_Вид_движения_ДС","v":0},{"$f":"[1]!Статья_бюджета_Статья","v":0}]
[{"$f":"[1]!Статья_бюджета_Порядковый_номер","v":0},{"$f":"[1]!Статья_бюджета_ЦФО","v":0},{"$f":"[1]!Статья_бюджета_Вид_движения_ДС","v":0},{"$f":"[1]!Статья_бюджета_Статья","v":0}]
[{"$f":"[1]!Статья_бюджета_Порядковый_номер","v":0},{"$f":"[1]!Статья_бюджета_ЦФО","v":0},{"$f":"[1]!Статья_бюджета_Вид_движения_ДС","v":0},{"$f":"[1]!Статья_бюджета_Статья","v":0}]
[{"$f":"[1]!Статья_бюджета_Порядковый_номер","v":0},{"$f":"[1]!Статья_бюджета_ЦФО","v":0},{"$f":"[1]!Статья_бюджета_Вид_движения_ДС","v":0},{"$f":"[1]!Статья_бюджета_Статья","v":0}]
[{"$f":"[1]!Статья_бюджета_Порядковый_номер","v":0},{"$f":"[1]!Статья_бюджета_ЦФО","v":0},{"$f":"[1]!Статья_бюджета_Вид_движения_ДС","v":0},{"$f":"[1]!Статья_бюджета_Статья","v":0}]
[{"$f":"[1]!Статья_бюджета_Порядковый_номер","v":0},{"$f":"[1]!Статья_бюджета_ЦФО","v":0},{"$f":"[1]!Статья_бюджета_Вид_движения_ДС","v":0},{"$f":"[1]!Статья_бюджета_Статья","v":0}]
[{"$f":"[1]!Статья_бюджета_Порядковый_номер","v":0},{"$f":"[1]!Статья_бюджета_ЦФО","v":0},{"$f":"[1]!Статья_бюджета_Вид_движения_ДС","v":0},{"$f":"[1]!Статья_бюджета_Статья","v":0}]
[{"$f":"[1]!Статья_бюджета_Порядковый_номер","v":0},{"$f":"[1]!Статья_бюджета_ЦФО","v":0},{"$f":"[1]!Статья_бюджета_Вид_движения_ДС","v":0},{"$f":"[1]!Статья_бюджета_Статья","v":0}]
[{"$f":"[1]!Статья_бюджета_Порядковый_номер","v":0},{"$f":"[1]!Статья_бюджета_ЦФО","v":0},{"$f":"[1]!Статья_бюджета_Вид_движения_ДС","v":0},{"$f":"[1]!Статья_бюджета_Статья","v":0}]
[{"$f":"[1]!Статья_бюджета_Порядковый_номер","v":0},{"$f":"[1]!Статья_бюджета_ЦФО","v":0},{"$f":"[1]!Статья_бюджета_Вид_движения_ДС","v":0},{"$f":"[1]!Статья_бюджета_Статья","v":0}]
[{"$f":"[1]!Статья_бюджета_Порядковый_номер","v":0},{"$f":"[1]!Статья_бюджета_ЦФО","v":0},{"$f":"[1]!Статья_бюджета_Вид_движения_ДС","v":0},{"$f":"[1]!Статья_бюджета_Статья","v":0}]
[{"$f":"[1]!Статья_бюджета_Порядковый_номер","v":0},{"$f":"[1]!Статья_бюджета_ЦФО","v":0},{"$f":"[1]!Статья_бюджета_Вид_движения_ДС","v":0},{"$f":"[1]!Статья_бюджета_Статья","v":0}]
[{"$f":"[1]!Статья_бюджета_Порядковый_номер","v":0},{"$f":"[1]!Статья_бюджета_ЦФО","v":0},{"$f":"[1]!Статья_бюджета_Вид_движения_ДС","v":0},{"$f":"[1]!Статья_бюджета_Статья","v":0}]
[{"$f":"[1]!Статья_бюджета_Порядковый_номер","v":0},{"$f":"[1]!Статья_бюджета_ЦФО","v":0},{"$f":"[1]!Статья_бюджета_Вид_движения_ДС","v":0},{"$f":"[1]!Статья_бюджета_Статья","v":0}]
[{"$f":"[1]!Статья_бюджета_Порядковый_номер","v":0},{"$f":"[1]!Статья_бюджета_ЦФО","v":0},{"$f":"[1]!Статья_бюджета_Вид_движения_ДС","v":0},{"$f":"[1]!Статья_бюджета_Статья","v":0}]
[{"$f":"[1]!Статья_бюджета_Порядковый_номер","v":0},{"$f":"[1]!Статья_бюджета_ЦФО","v":0},{"$f":"[1]!Статья_бюджета_Вид_движения_ДС","v":0},{"$f":"[1]!Статья_бюджета_Статья","v":0}]
[{"$f":"[1]!Статья_бюджета_Порядковый_номер","v":0},{"$f":"[1]!Статья_бюджета_ЦФО","v":0},{"$f":"[1]!Статья_бюджета_Вид_движения_ДС","v":0},{"$f":"[1]!Статья_бюджета_Статья","v":0}]
[{"$f":"[1]!Статья_бюджета_Порядковый_номер","v":0},{"$f":"[1]!Статья_бюджета_ЦФО","v":0},{"$f":"[1]!Статья_бюджета_Вид_движения_ДС","v":0},{"$f":"[1]!Статья_бюджета_Статья","v":0}]
[{"$f":"[1]!Статья_бюджета_Порядковый_номер","v":0},{"$f":"[1]!Статья_бюджета_ЦФО","v":0},{"$f":"[1]!Статья_бюджета_Вид_движения_ДС","v":0},{"$f":"[1]!Статья_бюджета_Статья","v":0}]
[{"$f":"[1]!Статья_бюджета_Порядковый_номер","v":0},{"$f":"[1]!Статья_бюджета_ЦФО","v":0},{"$f":"[1]!Статья_бюджета_Вид_движения_ДС","v":0},{"$f":"[1]!Статья_бюджета_Статья","v":0}]
[{"$f":"[1]!Статья_бюджета_Порядковый_номер","v":0},{"$f":"[1]!Статья_бюджета_ЦФО","v":0},{"$f":"[1]!Статья_бюджета_Вид_движения_ДС","v":0},{"$f":"[1]!Статья_бюджета_Статья","v":0}]
[{"$f":"[1]!Статья_бюджета_Порядковый_номер","v":0},{"$f":"[1]!Статья_бюджета_ЦФО","v":0},{"$f":"[1]!Статья_бюджета_Вид_движения_ДС","v":0},{"$f":"[1]!Статья_бюджета_Статья","v":0}]
[{"$f":"[1]!Статья_бюджета_Порядковый_номер","v":0},{"$f":"[1]!Статья_бюджета_ЦФО","v":0},{"$f":"[1]!Статья_бюджета_Вид_движения_ДС","v":0},{"$f":"[1]!Статья_бюджета_Статья","v":0}]
[{"$f":"[1]!Статья_бюджета_Порядковый_номер","v":0},{"$f":"[1]!Статья_бюджета_ЦФО","v":0},{"$f":"[1]!Статья_бюджета_Вид_движения_ДС","v":0},{"$f":"[1]!Статья_бюджета_Статья","v":0}]
[{"$f":"[1]!Статья_бюджета_Порядковый_номер","v":0},{"$f":"[1]!Статья_бюджета_ЦФО","v":0},{"$f":"[1]!Статья_бюджета_Вид_движения_ДС","v":0},{"$f":"[1]!Статья_бюджета_Статья","v":0}]
[{"$f":"[1]!Статья_бюджета_Порядковый_номер","v":0},{"$f":"[1]!Статья_бюджета_ЦФО","v":0},{"$f":"[1]!Статья_бюджета_Вид_движения_ДС","v":0},{"$f":"[1]!Статья_бюджета_Статья","v":0}]
[{"$f":"[1]!Статья_бюджета_Порядковый_номер","v":0},{"$f":"[1]!Статья_бюджета_ЦФО","v":0},{"$f":"[1]!Статья_бюджета_Вид_движения_ДС","v":0},{"$f":"[1]!Статья_бюджета_Статья","v":0}]
[{"$f":"[1]!Статья_бюджета_Порядковый_номер","v":0},{"$f":"[1]!Статья_бюджета_ЦФО","v":0},{"$f":"[1]!Статья_бюджета_Вид_движения_ДС","v":0},{"$f":"[1]!Статья_бюджета_Статья","v":0}]
[{"$f":"[1]!Статья_бюджета_Порядковый_номер","v":0},{"$f":"[1]!Статья_бюджета_ЦФО","v":0},{"$f":"[1]!Статья_бюджета_Вид_движения_ДС","v":0},{"$f":"[1]!Статья_бюджета_Статья","v":0}]
[{"$f":"[1]!Статья_бюджета_Порядковый_номер","v":0},{"$f":"[1]!Статья_бюджета_ЦФО","v":0},{"$f":"[1]!Статья_бюджета_Вид_движения_ДС","v":0},{"$f":"[1]!Статья_бюджета_Статья","v":0}]
[{"$f":"[1]!Статья_бюджета_Порядковый_номер","v":0},{"$f":"[1]!Статья_бюджета_ЦФО","v":0},{"$f":"[1]!Статья_бюджета_Вид_движения_ДС","v":0},{"$f":"[1]!Статья_бюджета_Статья","v":0}]
[{"$f":"[1]!Статья_бюджета_Порядковый_номер","v":0},{"$f":"[1]!Статья_бюджета_ЦФО","v":0},{"$f":"[1]!Статья_бюджета_Вид_движения_ДС","v":0},{"$f":"[1]!Статья_бюджета_Статья","v":0}]
[{"$f":"[1]!Статья_бюджета_Порядковый_номер","v":0},{"$f":"[1]!Статья_бюджета_ЦФО","v":0},{"$f":"[1]!Статья_бюджета_Вид_движения_ДС","v":0},{"$f":"[1]!Статья_бюджета_Статья","v":0}]
[{"$f":"[1]!Статья_бюджета_Порядковый_номер","v":0},{"$f":"[1]!Статья_бюджета_ЦФО","v":0},{"$f":"[1]!Статья_бюджета_Вид_движения_ДС","v":0},{"$f":"[1]!Статья_бюджета_Статья","v":0}]
[{"$f":"[1]!Статья_бюджета_Порядковый_номер","v":0},{"$f":"[1]!Статья_бюджета_ЦФО","v":0},{"$f":"[1]!Статья_бюджета_Вид_движения_ДС","v":0},{"$f":"[1]!Статья_бюджета_Статья","v":0}]
[{"$f":"[1]!Статья_бюджета_Порядковый_номер","v":0},{"$f":"[1]!Статья_бюджета_ЦФО","v":0},{"$f":"[1]!Статья_бюджета_Вид_движения_ДС","v":0},{"$f":"[1]!Статья_бюджета_Статья","v":0}]
[{"$f":"[1]!Статья_бюджета_Порядковый_номер","v":0},{"$f":"[1]!Статья_бюджета_ЦФО","v":0},{"$f":"[1]!Статья_бюджета_Вид_движения_ДС","v":0},{"$f":"[1]!Статья_бюджета_Статья","v":0}]
[{"$f":"[1]!Статья_бюджета_Порядковый_номер","v":0},{"$f":"[1]!Статья_бюджета_ЦФО","v":0},{"$f":"[1]!Статья_бюджета_Вид_движения_ДС","v":0},{"$f":"[1]!Статья_бюджета_Статья","v":0}]
[{"$f":"[1]!Статья_бюджета_Порядковый_номер","v":0},{"$f":"[1]!Статья_бюджета_ЦФО","v":0},{"$f":"[1]!Статья_бюджета_Вид_движения_ДС","v":0},{"$f":"[1]!Статья_бюджета_Статья","v":0}]
[{"$f":"[1]!Статья_бюджета_Порядковый_номер","v":0},{"$f":"[1]!Статья_бюджета_ЦФО","v":0},{"$f":"[1]!Статья_бюджета_Вид_движения_ДС","v":0},{"$f":"[1]!Статья_бюджета_Статья","v":0}]
[{"$f":"[1]!Статья_бюджета_Порядковый_номер","v":0},{"$f":"[1]!Статья_бюджета_ЦФО","v":0},{"$f":"[1]!Статья_бюджета_Вид_движения_ДС","v":0},{"$f":"[1]!Статья_бюджета_Статья","v":0}]
[{"$f":"[1]!Статья_бюджета_Порядковый_номер","v":0},{"$f":"[1]!Статья_бюджета_ЦФО","v":0},{"$f":"[1]!Статья_бюджета_Вид_движения_ДС","v":0},{"$f":"[1]!Статья_бюджета_Статья","v":0}]
[{"$f":"[1]!Статья_бюджета_Порядковый_номер","v":0},{"$f":"[1]!Статья_бюджета_ЦФО","v":0},{"$f":"[1]!Статья_бюджета_Вид_движения_ДС","v":0},{"$f":"[1]!Статья_бюджета_Статья","v":0}]
[{"$f":"[1]!Статья_бюджета_Порядковый_номер","v":0},{"$f":"[1]!Статья_бюджета_ЦФО","v":0},{"$f":"[1]!Статья_бюджета_Вид_движения_ДС","v":0},{"$f":"[1]!Статья_бюджета_Статья","v":0}]
[{"$f":"[1]!Статья_бюджета_Порядковый_номер","v":0},{"$f":"[1]!Статья_бюджета_ЦФО","v":0},{"$f":"[1]!Статья_бюджета_Вид_движения_ДС","v":0},{"$f":"[1]!Статья_бюджета_Статья","v":0}]